Cogmind - Beta 16 @@@ ROGUE MODE // 2025.11.27 @ 18:20:13 Player: Vriska Result: Destroyed by YW-A1G(z) with Zionite Laser-S Performance ------------- Evolutions (3) 1500 Regions Visited (10) 2000 Robots Destroyed (112) 560 Value Destroyed (3419) 3419 Prototype IDs (4) 80 Alien Tech Used (0) 0 Bonus (684) 684 TOTAL SCORE: 8243 Bonus ------- High Alert Combat Kills 100 Follower Combat Kills 14 Met Imprinter 300 Was Imprinted 300 Friendly Fire -30 Cogmind --------- Core Integrity 0/700 Matter 300/300 Energy 98/100 System Corruption 5% Temperature Warm (116) Movement Core (50) Location -7/Deep Caves Parts ------- > --- POWER (1) -------- (None) > --- PROPULSION (3) --- (None) > --- UTILITY (6) ------ Improved Signal Interpreter Salvage Targeting Computer > --- WEAPON (3) ------- (None) > --- INVENTORY (5) ---- Makeshift System Shield Authchip [R/Combat] Authchip [Propulsion] Authchip [Propulsion] Authchip [Processor] Peak State ------------ > --- POWER ------------ Light Angular Momentum Engine > --- PROPULSION ------- Aluminum Leg Aluminum Leg Makeshift Leg > --- UTILITY ---------- Medium Storage Unit Visual Processing Unit Salvage Targeting Computer Recoil Stabilizer Hacking Drone Bay Phasing AFG > --- WEAPON ----------- Gatling Laser Minigun > --- INVENTORY -------- Makeshift Power Source Aluminum Leg Makeshift System Shield Authchip [R/Combat] Authchip [Propulsion] Authchip [Propulsion] Authchip [Processor] Self-destruct Interrupter [Rating: 51] Favorites ----------- Power Light Ion Engine Engine Light Ion Engine Power Core Nuclear Core Propulsion Aluminum Leg Treads Armored Treads Leg Aluminum Leg Utility Visual Processing Unit Device Recoil Stabilizer Storage Medium Storage Unit Processor Visual Processing Unit Hackware Hacking Suite Protection Improved Light Armor Plating Weapon Gatling Laser Energy Gun Gatling Laser Energy Cannon Advanced Beam Cannon Ballistic Gun Enhanced Autogun Launcher Improved Grenade Launcher Impact Weapon Mace Piercing Weapon CR-A16's Pointy Stick Build | -11 -10 -10 -10 -9 -8 -7 -7 -7 -7 -7 ------- Run | Yrd Mat Min Exi Min Mat Fac Low Low Zio Dee Slots Evolved 6 | . . . . . 4 2 . . . . Power . | . . . . . . . . . . . Propulsion 1 | . . . . . 1 . . . . . Utility 4 | . . . . . 2 2 . . . . Weapon 1 | . . . . . 1 . . . . . Parts Attached 95 | 6 15 10 1 . 28 4 15 8 5 3 Power 13 | 1 3 3 . . 3 . . 2 . 1 Engine 10 | 1 3 3 . . . . . 2 . 1 Core 3 | . . . . . 3 . . . . . Reactor . | . . . . . . . . . . . Propulsion 31 | 2 6 2 . . 11 1 5 3 1 . Treads 7 | . . . . . 6 1 . . . . Leg 24 | 2 6 2 . . 5 . 5 3 1 . Wheel . | . . . . . . . . . . . Hover . | . . . . . . . . . . . Flight . | . . . . . . . . . . . Utility 22 | 1 3 . . . 5 2 5 1 4 1 Device 4 | . . . . . . . 1 1 2 . Storage 3 | 1 2 . . . . . . . . . Processor 5 | . 1 . . . 1 . 1 . 2 . Hackware 2 | . . . . . 1 . 1 . . . Protection 8 | . . . . . 3 2 2 . . 1 Artifact . | . . . . . . . . . . . Weapon 29 | 2 3 5 1 . 9 1 5 2 . 1 Energy Gun 4 | . . . . . . . 3 1 . . Energy Cannon 1 | . . . . . 1 . . . . . Ballistic Gun 21 | 2 3 5 . . 8 . 2 1 . . Ballistic Cannon . | . . . . . . . . . . . Launcher 1 | . . . . . . 1 . . . . Special Weapon . | . . . . . . . . . . . Impact Weapon 1 | . . . 1 . . . . . . . Slashing Weapon . | . . . . . . . . . . . Piercing Weapon 1 | . . . . . . . . . . 1 Special Melee Weapon . | . . . . . . . . . . . Unidentified Prototypes 4 | . . . . . 2 . . . 2 . Parts Lost 47 | . 4 2 . . 7 2 11 9 . 12 Power 8 | . 3 . . . 1 . 1 1 . 2 Propulsion 16 | . . 2 . . 4 1 3 3 . 3 Utility 13 | . . . . . 2 1 4 2 . 4 Weapon 10 | . 1 . . . . . 3 3 . 3 Highest Loss Streak 11 | . 1 1 . . 4 1 6 6 . 11 To Critical Strikes 1 | . . . . . . . 1 . . . Average Backups 8 | . 6 9 10 10 9 9 8 7 7 7 Power 1 | . . 1 1 1 1 1 1 . . . Propulsion . | . 2 1 1 1 . . . . . . Utility 5 | . 2 5 5 5 6 6 5 5 5 6 Weapon 1 | . . 2 3 3 1 2 1 1 . . Tool/Special . | . . . . . . . . . . . Unused Backups 15 | . 2 1 . . 7 . . . . 5 Power 2 | . . 1 . . 1 . . . . . Propulsion 2 | . 2 . . . . . . . . . Utility 11 | . . . . . 6 . . . . 5 Weapon . | . . . . . . . . . . . Tool/Special . | . . . . . . . . . . . Average Slot Usage (%) 86 | . 91 99 100 100 92 97 78 70 90 84 Engine 5 | . 9 14 14 14 2 . . 6 7 5 Core 1 | . . . . . 6 7 2 . . . Treads 4 | . . . . . 16 22 3 . . . Leg 16 | . 27 27 28 28 8 . 12 9 22 20 Device 2 | . . . . . . . . . 19 13 Storage 9 | . 14 14 14 14 9 7 7 7 7 6 Processor 14 | . 12 14 14 14 13 15 14 15 17 15 Hackware 2 | . . . . . 1 . 4 5 . . Protection 4 | . . . . . 8 20 10 . . . Energy Gun 6 | . . . . . . . 13 14 7 6 Ballistic Gun 15 | . 25 28 18 24 23 22 7 6 7 6 Peak Build Rating 51 | 6 9 9 10 10 36 44 42 39 51 45 Average Rating 26 | 4 7 8 9 9 27 42 33 29 46 40 On Entrance 20 | . 6 9 9 10 9 36 39 35 25 45 Avg Prop Armor Cover (%) 9 | . . . . . 11 . 13 9 . . Naked Turns . | . . . . . . . . . . . Heaviest Build 48 | 11 17 17 16 16 29 46 42 35 48 31 Greatest Support 60 | 20 20 20 20 20 60 60 60 45 40 40 Greatest Overweight (x) 10 | 1 . . . . 1 . 2 10 2 . Average Overweight (x) . | . . . . . . . . 5 . . Largest Inventory Capacity 15 | 8 15 10 10 10 10 10 10 10 10 10 Average Capacity 9 | 7 9 10 10 10 10 10 10 10 10 9 Most Carried 10 | 1 10 10 10 10 10 10 10 9 10 10 Average Carried 8 | . 6 9 10 10 9 9 8 7 8 8 Final Capacity 10 | 8 10 10 10 10 10 10 10 10 10 5 Final Carried 10 | 1 10 10 10 10 10 9 9 5 10 5 Class Distribution -------------------- 34% | Scavenger-Mutant 19% | Scavenger-Tank 17% | Tank 14% | Skirmisher 12% | Mutant Dominant Class ---------------- Scavenger-Mutant | -10/Materials Scavenger-Mutant | -10/Mines Mutant | -10/Exiles Scavenger-Mutant | -9/Mines Tank | -8/Materials Tank | -7/Factory Scavenger-Tank | -7/Lower Caves Skirmisher | -7/Lower Caves Scavenger-Mutant | -7/Zion Scavenger-Mutant | -7/Deep Caves Resources | -11 -10 -10 -10 -9 -8 -7 -7 -7 -7 -7 ----------- Run | Yrd Mat Min Exi Min Mat Fac Low Low Zio Dee Matter Collected 3734 | 106 565 204 . . 1340 194 932 265 98 30 Remotely . | . . . . . . . . . . . Salvage Created 4170 | . 639 212 . . 2042 239 531 460 17 30 Parts 255 | . 64 20 . . 120 7 27 15 2 . Haulers Intercepted 4 | . . . . . 4 . . . . . Recyclers Shooed 1 | . 1 . . . . . . . . . Parts Field Recycled . | . . . . . . . . . . . Retrieved Matter . | . . . . . . . . . . . Parts Self-Destructed 31 | . . . . . . . 19 12 . . Prevented . | . . . . . . . . . . . Parts Restored . | . . . . . . . . . . . Kills | -11 -10 -10 -10 -9 -8 -7 -7 -7 -7 -7 ------- Run | Yrd Mat Min Exi Min Mat Fac Low Low Zio Dee Combat Hostiles Destroyed 95 | . 19 9 . . 39 5 11 10 . 2 Melee 4 | . . . . . . 1 1 . . 2 Guns 87 | . 19 9 . . 35 4 10 10 . . Cannons 4 | . . . . . 4 . . . . . Classes Destroyed 17 | . 5 . . . 7 . 2 1 1 1 Worker 1 | . . . . . 1 . . . . . Builder 2 | . 1 . . . 1 . . . . . Hauler 4 | . . . . . 4 . . . . . Recycler 2 | . . . . . 2 . . . . . Mechanic 1 | . . . . . 1 . . . . . Operator 4 | . 3 . . . 1 . . . . . Watcher 4 | . 3 . . . 1 . . . . . Swarmer 31 | . 9 7 . . 11 . 2 2 . . Grunt 44 | . 10 2 . . 20 3 3 6 . . Brawler 1 | . . . . . 1 . . . . . Duelist 1 | . . . . . . . . 1 . . Sentry 11 | . . . . . 6 2 2 1 . . Hunter 1 | . . . . . 1 . . . . . Programmer 1 | . . . . . . . 1 . . . Zionite 1 | . . . . . . . . . 1 . Assembled 2 | . . . . . . . . . . 2 Thug 1 | . . . . . . . 1 . . . Savage 1 | . . . . . . . 1 . . . Mutant 1 | . . . . . . . 1 . . . Best Kill Streak 9 | . 4 3 . . 9 2 5 5 . 2 Combat Bots Only 8 | . 3 3 . . 8 2 5 5 . 2 Max Kills in Single Turn 2 | . 1 1 . . 2 1 1 1 1 1 Gunslinging 1 | . . . . . 1 . . . . . Exploded . | . . . . . . . . . . . Melee 1 | . . . . . . 1 1 . . 1 Uniques/NPCs Destroyed . | . . . . . . . . . . . Combat | -11 -10 -10 -10 -9 -8 -7 -7 -7 -7 -7 -------- Run | Yrd Mat Min Exi Min Mat Fac Low Low Zio Dee Hostile Shots Fired 858 | . 122 86 . . 186 235 99 54 . 76 Missed 255 | . 50 22 . . 39 82 22 10 . 30 Hits 603 | . 72 64 . . 147 153 77 44 . 46 Melee 6 | . . . . . . . 3 . . 3 Projectile 597 | . 72 64 . . 147 153 74 44 . 43 AOE 1 | . . . . . . 1 . . . . Critical Strikes 16 | . . 2 . . 4 . 7 3 . . Damage Taken 8274 | . 695 610 . . 2136 1333 1425 758 . 1317 Core 1355 | . 117 112 . . 401 70 258 103 . 294 Absorbed by Shields . | . . . . . . . . . . . Regen/Repaired (Parts) 208 | . . . . . 146 . . . 62 . Core Remaining (%) 45 | 100 . . . 8 27 . . . . . Volleys Fired 378 | . 87 37 4 . 125 34 56 22 . 13 Largest 3 | . 2 2 2 . 3 3 3 3 . 2 Hottest 240 | . 40 40 40 . 118 75 240 240 . 105 Shots Fired 822 | . 157 74 8 . 327 78 114 43 1 20 Gun 806 | . 157 74 8 . 318 71 114 43 1 20 Cannon 9 | . . . . . 9 . . . . . Launcher 7 | . . . . . . 7 . . . . Special . | . . . . . . . . . . . Kinetic 753 | . 157 74 8 . 318 71 107 11 . 7 Thermal 62 | . . . . . 9 . 7 32 1 13 Explosive 7 | . . . . . . 7 . . . . Electromagnetic . | . . . . . . . . . . . Robot Hit Streak 23 | . 8 4 . . 9 21 23 12 7 5 Robot Miss Streak 10 | . 3 4 . . 6 4 10 5 2 5 Penetration Max 1 | . . . . . 1 . . . . . Secondary Targets 18 | . 1 5 . . 10 . . 2 . . Max Gunslinging Chain 1 | . 1 1 . . 1 . . 1 . . Shots Hit Robots 503 | . 88 43 . . 201 52 73 29 1 16 Core Hits 232 | . 44 18 . . 88 15 25 29 1 12 Critical Kills 2 | . 1 . . . 1 . . . . . Critical Parts Destroyed 4 | . . . . . 2 . 2 . . . Critical Strikes 8 | . 1 . . . 3 1 2 . . 1 Destroy 7 | . 1 . . . 3 1 2 . . . Impale 1 | . . . . . . . . . . 1 Melee Attacks 6 | . . . 3 . . . . . . 3 Impact 3 | . . . 3 . . . . . . . Slashing . | . . . . . . . . . . . Piercing 3 | . . . . . . . . . . 3 Sneak Attacks . | . . . . . . . . . . . Combat Hostiles . | . . . . . . . . . . . Follow-up Attacks . | . . . . . . . . . . . Damage Inflicted 7798 | . 879 383 . . 3321 950 1266 595 10 394 Guns 7459 | . 879 383 . . 3198 887 1236 595 10 271 Cannons 123 | . . . . . 123 . . . . . Explosions 56 | . . . . . . 56 . . . . Melee 123 | . . . . . . . . . . 123 Ramming 37 | . . . . . . 7 30 . . . Kinetic 6720 | . 879 383 . . 3198 887 1224 113 . 36 Thermal 862 | . . . . . 123 . 12 482 10 235 Explosive 56 | . . . . . . 56 . . . . Electromagnetic . | . . . . . . . . . . . Impact . | . . . . . . . . . . . Slashing . | . . . . . . . . . . . Piercing 123 | . . . . . . . . . . 123 Highest Corruption 14 | . . . . . . . 14 14 14 5 Average Corruption 12 | . . . . . . . 11 14 14 5 Corruption Purged . | . . . . . . . . . . . Corruption Blocked . | . . . . . . . . . . . Effects 174 | . . . . . . . 74 86 10 4 Message Errors 48 | . . . . . . . 21 21 3 3 Matter Fused 34 | . . . . . . . 15 17 2 . Heat Flow Errors 20 | . . . . . . . 7 12 1 . Energy Discharges 31 | . . . . . . . 14 13 3 1 Parts Fused 3 | . . . . . . . 2 1 . . Data Loss (minor) 12 | . . . . . . . 5 7 . . Data Loss (major) 6 | . . . . . . . 4 2 . . Misfires 11 | . . . . . . . 3 7 1 . Alerts 6 | . . . . . . . 1 5 . . Weapon Failures 3 | . . . . . . . 2 1 . . Overload Shots . | . . . . . . . . . . . Overflow Damage 1 | . . . . . . . . . . 1 Projectiles . | . . . . . . . . . . . Explosions . | . . . . . . . . . . . Melee 1 | . . . . . . . . . . 1 Knockbacks . | . . . . . . . . . . . Impact . | . . . . . . . . . . . Kinetic . | . . . . . . . . . . . Secondary . | . . . . . . . . . . . Self-Inflicted Damage 13 | . . . . . . 13 . . . . Shots 1 | . . . . . . 1 . . . . Rammed 10 | . . . . . . 1 9 . . . Targets Rammed 12 | . . . . . . 2 10 . . . Kicked . | . . . . . . . . . . . Crushed 2 | . . . . . . 1 1 . . . Highest Temperature 563 | . 15 31 . . 563 456 558 543 275 341 Average Temperature 132 | . 6 12 . . 113 217 138 173 116 109 Received Heat Transfer 2911 | . 237 162 . . 999 420 345 306 . 442 Effects 40 | . . . . . 13 4 13 10 . . Shutdowns 8 | . . . . . 4 2 1 1 . . Energy Bleed 1 | . . . . . . . 1 . . . Interference 14 | . . . . . 4 1 4 5 . . Matter Decay 3 | . . . . . . 1 . 2 . . Short Circuit 4 | . . . . . 1 . 1 2 . . Damage (minor) 3 | . . . . . . . 3 . . . Damage (major) 5 | . . . . . 3 . 2 . . . Damage (core) 2 | . . . . . 1 . 1 . . . Siege Activations . | . . . . . . . . . . . Martial Activations . | . . . . . . . . . . . Shielding Activations . | . . . . . . . . . . . Robots Disrupted . | . . . . . . . . . . . Combat Hostiles . | . . . . . . . . . . . Robots Corrupted . | . . . . . . . . . . . Combat Hostiles . | . . . . . . . . . . . Parts Fried . | . . . . . . . . . . . Impact Corruptions . | . . . . . . . . . . . Robots Melted . | . . . . . . . . . . . Combat Hostiles . | . . . . . . . . . . . Parts Melted 3 | . . . . . . . . 3 . . Heat Transferred 1688 | . . . . . 222 . 25 1100 25 316 Parts Sabotaged . | . . . . . . . . . . . Parts Stolen . | . . . . . . . . . . . Parts Stripped . | . . . . . . . . . . . Power Chain Reactions . | . . . . . . . . . . . Alert | -11 -10 -10 -10 -9 -8 -7 -7 -7 -7 -7 ------- Run | Yrd Mat Min Exi Min Mat Fac Low Low Zio Dee Maximum Alert Level 2 | . . . . . 2 . . . . . Low Security (%) 72 | 100 100 100 . 100 29 100 . . . . Level 1 13 | . . . . . 33 . . . . . Level 2 14 | . . . . . 36 . . . . . Level 3 . | . . . . . . . . . . . Level 4 . | . . . . . . . . . . . Level 5 . | . . . . . . . . . . . High Security . | . . . . . . . . . . . Max Security . | . . . . . . . . . . . Peak Influence 523 | . 182 75 . . 523 156 . . . . Initial 156 | . . 3 . . . 156 . . . . Average 150 | . 84 22 . . 274 103 . . . . Influence Increases 2573 | . 536 279 . . 1078 210 230 240 . . Destroy 0b10 Robot/C 1840 | . 380 220 . . 780 100 160 200 . . Destroy 0b10 Robot/NC 90 | . 35 . . . 55 . . . . . Destroy Leader 366 | . 86 40 . . 190 30 10 10 . . Allied During Kill 4 | . . 4 . . . . . . . . Successful Hack 15 | . 5 . . . 6 4 . . . . Disable Machine 15 | . . . . . . 15 . . . . Destroy Structure 33 | . . . . . 2 31 . . . . Lose Combat Pursuer 210 | . 30 15 . . 45 30 60 30 . . Influence Decreases 2573 | . 526 289 . . 732 464 322 171 69 . Entered New Map 301 | . . 7 . . . 190 35 . 69 . Time Decay 1816 | . 494 262 . . 512 254 213 81 . . Lost Part 306 | . 32 20 . . 70 20 74 90 . . Purge Threat 150 | . . . . . 150 . . . . . Squads Dispatched 17 | . 4 . . . 9 3 . 1 . . Investigation 6 | . 1 . . . 4 1 . . . . Extermination . | . . . . . . . . . . . Reinforcement 4 | . 3 . . . 1 . . . . . Assault 1 | . . . . . . . . 1 . . Garrison 6 | . . . . . 4 2 . . . . Intercept . | . . . . . . . . . . . Searches Triggered . | . . . . . . . . . . . Construction Impeded . | . . . . . . . . . . . Haulers Reinforced . | . . . . . . . . . . . Active Scanning Responses . | . . . . . . . . . . . Cargo Convoy Interrupts . | . . . . . . . . . . . Stealth | -11 -10 -10 -10 -9 -8 -7 -7 -7 -7 -7 --------- Run | Yrd Mat Min Exi Min Mat Fac Low Low Zio Dee Distress Signals 5 | . 1 . . . 4 . . . . . Communications Jammed . | . . . . . . . . . . . Distress Signals . | . . . . . . . . . . . Times Spotted 145 | . 32 12 . . 58 8 14 12 . 9 Peak Tracking Total 8 | . 3 3 . . 7 3 7 7 . 8 Tactical Retreats 13 | . 1 1 . . 3 1 4 2 . 1 Traps | -11 -10 -10 -10 -9 -8 -7 -7 -7 -7 -7 ------- Run | Yrd Mat Min Exi Min Mat Fac Low Low Zio Dee Traps Triggered 2 | . 2 . . . . . . . . . Indirectly . | . . . . . . . . . . . Trap Hack Attempts . | . . . . . . . . . . . Triggered . | . . . . . . . . . . . Disarmed . | . . . . . . . . . . . Reprogrammed . | . . . . . . . . . . . Reused . | . . . . . . . . . . . Traps Extracted . | . . . . . . . . . . . Installed . | . . . . . . . . . . . Triggered . | . . . . . . . . . . . Machines | -11 -10 -10 -10 -9 -8 -7 -7 -7 -7 -7 ---------- Run | Yrd Mat Min Exi Min Mat Fac Low Low Zio Dee Machines Disabled 2 | . . . . . . 1 1 . . . Max in Single Turn 1 | . . . . . . 1 1 . . . Machines Repaired . | . . . . . . . . . . . Machines Dismantled . | . . . . . . . . . . . Machines Sabotaged . | . . . . . . . . . . . Overloaded Fab Kills . | . . . . . . . . . . . Hacking | -11 -10 -10 -10 -9 -8 -7 -7 -7 -7 -7 --------- Run | Yrd Mat Min Exi Min Mat Fac Low Low Zio Dee Machines Accessed 18 | . 3 . 4 . 9 1 1 . . . Terminals 10 | . 2 . . . 6 1 1 . . . Fabricators . | . . . . . . . . . . . Repair Stations 1 | . . . . . 1 . . . . . Recycling Units 1 | . 1 . . . . . . . . . Scanalyzers 2 | . . . . . 2 . . . . . Garrison Access . | . . . . . . . . . . . Total Hacks 37 | . 3 . 4 . 19 6 5 . . . Successful 24 | . 3 . 4 . 9 3 5 . . . Failed 12 | . . . . . 9 3 . . . . Catastrophic 5 | . . . . . 4 1 . . . . Database Lockouts 1 | . . . . . 1 . . . . . Manual 24 | . 2 . . . 12 3 . . 7 . Terminals 24 | . 2 . . . 11 6 5 . . . Fabricators . | . . . . . . . . . . . Repair Stations 3 | . . . . . 3 . . . . . Recycling Units 1 | . 1 . . . . . . . . . Scanalyzers 5 | . . . . . 5 . . . . . Garrison Access . | . . . . . . . . . . . Terminal Hacks 18 | . 2 . 4 . 4 3 5 . . . Record 12 | . . . 4 . . 3 5 . . . Part Schematic 1 | . . . . . 1 . . . . . Alert Level 2 | . 1 . . . 1 . . . . . Unreport Threat 1 | . . . . . 1 . . . . . Hauler Manifests 2 | . 1 . . . 1 . . . . . Fabricator Hacks . | . . . . . . . . . . . Repair Station Hacks 2 | . . . . . 2 . . . . . Scan Component 1 | . . . . . 1 . . . . . Repair 1 | . . . . . 1 . . . . . Recycling Unit Hacks 1 | . 1 . . . . . . . . . Report Inventory 1 | . 1 . . . . . . . . . Scanalyzer 3 | . . . . . 3 . . . . . Insert Component 1 | . . . . . 1 . . . . . Analyze 1 | . . . . . 1 . . . . . Retrieve Study 1 | . . . . . 1 . . . . . Garrison Access Hacks . | . . . . . . . . . . . Unauthorized Hacks . | . . . . . . . . . . . Terminals . | . . . . . . . . . . . Fabricators . | . . . . . . . . . . . Repair Stations . | . . . . . . . . . . . Recycling Units . | . . . . . . . . . . . Scanalyzers . | . . . . . . . . . . . Garrison Access . | . . . . . . . . . . . Data Cores Recovered 1 | . 1 . . . . . . . . . Used . | . . . . . . . . . . . Hacking Detections 11 | . 1 . . . 8 1 1 . . . Full Trace Events 5 | . . . . . 4 1 . . . . Feedback Events . | . . . . . . . . . . . Feedback Blocked . | . . . . . . . . . . . Robot Schematics Acquired . | . . . . . . . . . . . Robots Built . | . . . . . . . . . . . Authchips . | . . . . . . . . . . . Time . | . . . . . . . . . . . Total Robot Build Rating . | . . . . . . . . . . . Part Schematics Acquired 3 | . . . . . 2 . . . 1 . Parts Built . | . . . . . . . . . . . Authchips . | . . . . . . . . . . . Time . | . . . . . . . . . . . Total Part Build Rating . | . . . . . . . . . . . Part Studies Acquired 1 | . . . . . 1 . . . . . Parts Repaired 1 | . . . . . 1 . . . . . Time 60 | . . . . . 60 . . . . . Parts Recycled . | . . . . . . . . . . . Recycled Matter . | . . . . . . . . . . . Retrieved Matter . | . . . . . . . . . . . Retrieved Components . | . . . . . . . . . . . Parts Scanalyzed 1 | . . . . . 1 . . . . . Part Schematics Acquired 1 | . . . . . 1 . . . . . Parts Damaged . | . . . . . . . . . . . Bothacking | -11 -10 -10 -10 -9 -8 -7 -7 -7 -7 -7 ------------ Run | Yrd Mat Min Exi Min Mat Fac Low Low Zio Dee Used RIF Installer . | . . . . . . . . . . . Robots Hacked . | . . . . . . . . . . . Non-combat . | . . . . . . . . . . . Combat . | . . . . . . . . . . . Robot Hacks Applied . | . . . . . . . . . . . Relay Couplers Released . | . . . . . . . . . . . Fabnet Peak Effective % . | . . . . . . . . . . . Robots Rewired . | . . . . . . . . . . . Allies Hacked . | . . . . . . . . . . . Hacks Repelled . | . . . . . . . . . . . Allies | -11 -10 -10 -10 -9 -8 -7 -7 -7 -7 -7 -------- Run | Yrd Mat Min Exi Min Mat Fac Low Low Zio Dee Total Allies 7 | . . 1 . . . . . . 6 . Largest Group 6 | . . 1 . . . . . . 6 . Highest-Rated Group 205 | . . 31 . . . . . . 205 . Highest-Rated Ally 40 | . . 31 . . . . . . 40 . Total Orders . | . . . . . . . . . . . Ally Attacks 10 | . . 10 . . . . . . . . Total Damage 126 | . . 126 . . . . . . . . Kills 2 | . . 2 . . . . . . . . Allies Corrupted . | . . . . . . . . . . . Allies Melted . | . . . . . . . . . . . Intel | -11 -10 -10 -10 -9 -8 -7 -7 -7 -7 -7 ------- Run | Yrd Mat Min Exi Min Mat Fac Low Low Zio Dee Active Infowar (turns) 7701 | . 1371 808 731 31 1847 549 706 198 1447 13 Optics 7475 | . 1371 808 731 31 1847 549 706 198 1234 . Decoding 226 | . . . . . . . . . 213 13 Robot Analysis Total . | . . . . . . . . . . . Derelict Logs Recovered 3 | . . 1 . . . . 1 1 . . Drone Launches . | . . . . . . . . . . . Drone Recoveries . | . . . . . . . . . . . Exploration | -11 -10 -10 -10 -9 -8 -7 -7 -7 -7 -7 ------------- Run | Yrd Mat Min Exi Min Mat Fac Low Low Zio Dee Turns Passed 11402 | 49 1510 808 731 31 1934 549 2017 2121 1449 203 Spaces Moved 6342 | 32 980 556 591 25 972 193 1389 582 891 131 Core 330 | 5 . . . . . . . 310 . 15 Treads 1032 | . . . . . 623 193 216 . . . Legs 4980 | 27 980 556 591 25 349 . 1173 272 891 116 Wheels . | . . . . . . . . . . . Hover . | . . . . . . . . . . . Flight . | . . . . . . . . . . . Fastest Speed 50 | 50 120 120 120 120 120 170 120 120 120 50 Average Speed 155 | 124 120 120 120 120 151 170 133 349 158 117 Slowest Speed 550 | 190 120 120 120 120 240 170 260 550 280 130 Overloaded Moves . | . . . . . . . . . . . Propulsion Burnouts . | . . . . . . . . . . . Robots Hopped . | . . . . . . . . . . . Potential Cave-ins . | . . . . . . . . . . . Cave-ins Triggered . | . . . . . . . . . . . Exploration Rate (%) 59 | 3 89 97 95 19 68 4 99 67 91 26 Regions Visited 10 Branch Regions 7 Pre-discovered Areas 1 | . . . . . . . . . 1 . Known Exits Taken 4 | . . . . . 1 1 1 . 1 . Unknown Exits Taken 6 | 1 1 1 1 1 . . . 1 . . Scrap Searched 9 | . . 1 . . . . 3 2 3 . Spaces Dug . | . . . . . . . . . . . Terrain Destroyed 39 | . . . . . . 39 . . . . Melee . | . . . . . . . . . . . Projectile 1 | . . . . . . 1 . . . . AOE 38 | . . . . . . 38 . . . . Terrain Rammed . | . . . . . . . . . . . Walls Destroyed . | . . . . . . . . . . . Machines Disabled . | . . . . . . . . . . . Actions | -11 -10 -10 -10 -9 -8 -7 -7 -7 -7 -7 --------- Run | Yrd Mat Min Exi Min Mat Fac Low Low Zio Dee Total 7307 | 38 1176 637 600 25 1264 374 1484 626 930 153 Wait 355 | . 56 25 2 . 92 142 4 11 23 . Move 6332 | 31 979 555 590 24 971 192 1388 581 890 131 Hop . | . . . . . . . . . . . Pick Up 49 | 1 20 3 . . 15 . 3 2 5 . Fast Attach 49 | 6 4 1 . . 17 2 11 3 5 . Attach 27 | . 3 2 . . 6 1 5 6 1 3 Detach 2 | . . . . . . . 1 . 1 . Swap 33 | . 11 7 1 1 9 1 2 . 1 . Drop 64 | . 16 7 . . 29 . 4 1 4 3 Fire 378 | . 87 37 4 . 125 34 56 22 . 13 Melee 6 | . . . 3 . . . . . . 3 Ram . | . . . . . . . . . . . Kick . | . . . . . . . . . . . Crush 12 | . . . . . . 2 10 . . . Escape Stasis . | . . . . . . . . . . . Rewire . | . . . . . . . . . . . Trap . | . . . . . . . . . . . Miscellaneous . | . . . . . . . . . . . Route ------- -11/Scrapyard -10/Materials (discovered 4 exits: [*Mat x3] / [*Min]) -10/Mines (discovered 3 exits: [*Mat x2] / *Exi) -10/Exiles (discovered 2 exits: [*Min x2]) -9/Mines -8/Materials (discovered 2 exits: *Fac x2) -7/Factory (discovered 2 exits: *Fac / *Low) -7/Lower Caves -7/Lower Caves (discovered 2 exits: *Fac / *Zio) -7/Zion (discovered 2 exits: *Dee / [*Pro]) -7/Deep Caves History --------- Turn | Location | Event 7 | -11/Scrapyard | Discovered new exit (range 16) 50 | -11/Scrapyard | Entered Materials 277 | -10/Materials | Discovered new exit (range 10) 312 | -10/Materials | Build established: Mutant 420 | -10/Materials | Discovered new exit (range 7) 684 | -10/Materials | Discovered new exit (range 4) 800 | -10/Materials | Discovered new exit (range 18) 1096 | -10/Materials | Build established: Scavenger-Mutant 1560 | -10/Materials | Entered Mines 1593 | -10/Mines | Core integrity fell below 50% 1668 | -10/Mines | Learned Materials non-interactive machine intel 1876 | -10/Mines | Discovered new exit (range 13) 1937 | -10/Mines | Received a Mining Laser from a helpful Derelict 1994 | -10/Mines | Discovered new exit (range 7) 2148 | -10/Mines | Core integrity fell below 20% 2360 | -10/Mines | Deemed a non-threat by the Exiles lab entrance 2362 | -10/Mines | Discovered new exit (range 5) 2368 | -10/Mines | Entered Exiles 2368 | -10/Exiles | Found Exiles lab abandoned 2384 | -10/Exiles | Discovered new exit (range 17) 2702 | -10/Exiles | Discovered new exit (range 12) 2858 | -10/Exiles | Build established: Mutant 3099 | -10/Exiles | Entered Mines 3121 | -9/Mines | Discovered new exit (range 7) 3130 | -9/Mines | Entered Materials 3130 | -8/Materials | Evolved 4 slots: Propulsion x1, Utility x2, Weapon x1 3131 | -8/Materials | Loaded intel: 42 non-interactive machine locations 3425 | -8/Materials | Build established: Scavenger-Tank 3620 | -8/Materials | Garrison activated, responded to threat 3687 | -8/Materials | Destroyed 7 combat bots 3692 | -8/Materials | Lost 4 parts (1p2n1u) 3759 | -8/Materials | Destroyed 7 combat bots 3782 | -8/Materials | Core integrity fell below 50% 3957 | -8/Materials | Repaired Enh. Autogun 4085 | -8/Materials | Discovered new exit (range 3) 4091 | -8/Materials | Identified exit to Factory 4222 | -8/Materials | Garrison activated, responded to threat 4287 | -8/Materials | Destroyed 8 combat bots 4398 | -8/Materials | Discovered exit to Factory (range 5) 4423 | -8/Materials | Build established: Tank 4604 | -8/Materials | Central database locked down 5064 | -8/Materials | Entered Factory 5064 | -7/Factory | Evolved 2 slots: Utility x2 5346 | -7/Factory | Discovered new exit (range 4) 5359 | -7/Factory | Identified exit to Factory 5471 | -7/Factory | Discovered new exit (range 18) 5601 | -7/Factory | Identified exit to Lower Caves 5613 | -7/Factory | Entered Lower Caves 5834 | -7/Lower Caves | Identified exit to Lower Caves 6040 | -7/Lower Caves | Attracted the attention of an 0b10 checkpoint 6091 | -7/Lower Caves | System corruption reached 10% 6125 | -7/Lower Caves | Lost 3 parts (2u1w) 6143 | -7/Lower Caves | Attacked by a faux Warlord 6288 | -7/Lower Caves | Attracted the attention of an 0b10 base 6300 | -7/Lower Caves | Build established: Scavenger-Tank 6376 | -7/Lower Caves | Lost 6 parts (1p2n1u2w) 6415 | -7/Lower Caves | Learned Factory trap positions 6415 | -7/Lower Caves | Learned Armory terminal intel 7546 | -7/Lower Caves | Entered a destroyed Warlord outpost 7630 | -7/Lower Caves | Entered another Lower Caves area 7641 | -7/Lower Caves | Discovered exit to Factory (range 9) 7762 | -7/Lower Caves | Lost 3 parts (2n1u) 8089 | -7/Lower Caves | Build established: Skirmisher 9427 | -7/Lower Caves | Attracted the attention of an 0b10 outpost 9431 | -7/Lower Caves | Core integrity fell below 50% 9510 | -7/Lower Caves | Lost 6 parts (1p1n1u3w) 9698 | -7/Lower Caves | Discovered new exit (range 16) 9751 | -7/Lower Caves | Entered Zion 9763 | -7/Zion | Build established: Scavenger-Mutant 9781 | -7/Zion | Given the Hacking Drone Bay 9781 | -7/Zion | Found Prototype Device 9783 | -7/Zion | Identified Hacking Drone Bay 9856 | -7/Zion | Discovered new exit (range 12) 9904 | -7/Zion | Found Prototype Device 9904 | -7/Zion | Identified Phasing AFG 9981 | -7/Zion | System corruption cleaned by Quarantine Array 10042 | -7/Zion | Learned location of Data Miner (-6) 10134 | -7/Zion | Learned Factory terminal intel 10183 | -7/Zion | Found CR-A16's Pointy Stick 10365 | -7/Zion | Gained Derelict followers 10476 | -7/Zion | Met Imprinter 10514 | -7/Zion | Imprinted 10516 | -7/Zion | Declared Zion's savior 11032 | -7/Zion | Acquired unknown access codes intercepted by a Zionite 11175 | -7/Zion | Opened final containment barrier to the Deep Caves 11194 | -7/Zion | Discovered new exit (range 5) 11197 | -7/Zion | Saw the warning signs outside the Deep Caves entrance 11199 | -7/Zion | Identified exit to Deep Caves 11200 | -7/Zion | Entered Deep Caves 11200 | -7/Deep Caves | Accompanied by 2 allies 11358 | -7/Deep Caves | Attacked by Z-Imprinter 11376 | -7/Deep Caves | Z-Facility disabled 11397 | -7/Deep Caves | Core integrity fell below 20% 11403 | -7/Deep Caves | Destroyed by YW-A1G(z) with Zionite Laser-S Last Messages --------------- I OZW3AF=CIF#L&X3CHFLY4PK4SPXQPMZKNING=P NEW_ZION: Z-Facility proximity alert. Lgt. Angular Momentum Engine destroyed. Z-Imprinter: GET AWAY FROM HERE! I've worked too hard for our future just to have you ruin everything! Aluminum Leg destroyed. Z-Facility disabled. Minigun destroyed. Mak. Leg destroyed. APS Q2HYM9:YZ%VADO8TDN%/ Aluminum Leg destroyed. Recoil Stabilizer destroyed. Hacking Drone Bay destroyed. Hrd. Medium Armor Plating destroyed. Mak. Power Source destroyed. Gatling Laser destroyed. Dropped Self-destruct Interrupter. CR-A16's Pointy Stick destroyed. Dropped Phasing AFG. Dropped Med. Storage Unit. Map ----- +----------------------------------------------------+ | | | | | | | | | | | | | | | ?????????????????????????????????????##??????????? | | ?????????????????????#???????########"######?????? | | ?????????????????????# ???#### ##????? | | ?????????????????????# ??## #????# | | ?????????????######??# ?## ###### | | ????????????## # #?# ## ## # | | ???????????? zz ## | | ??????????? &! | | ??????????? ! | | ?????????? | | ?????????? | | ?????????? "" """"" | | ?????????? """"""""""""" | | ?????????? """"""""""""" | | ?????????? """""""""""""" | | ?????????? """"""""""" | | ?????????? """"""""???""" | | ?????????? """"""?????""" | | ?????????? @""""""???????" | | ?????????? """"""???????" | | ?????????? """""????????? | | ??????????? """"??????????? | | ??????????? """"?????????????????? | | ???????????? """???????????????????? | | ???????????? ""????????????????????? | | ???????????? ""????????????????????? | | ????????????? "?????????????????????? | | ????????????? "?????????????????????? | | ?????????????? "?????????????????????? | | ?????????????? "?????????????????????? | | ???????????????? "?????????????????????? | | ?????????????????? ?????????????????????? | | ????????????????????? ??????????????????????? | | ??????????????????????? ??????????????????????? | | ?????????????????????????????????????????????????? | | ?????????????????????????????????????????????????? | | ?????????????????????????????????????????????????? | | ?????????????????????????????????????????????????? | | ?????????????????????????????????????????????????? | | ?????????????????????????????????????????????????? | | ?????????????????????????????????????????????????? | | ?????????????????????????????????????????????????? | | ?????????????????????????????????????????????????? | +----------------------------------------------------+ Best States ------------- Heat Dissipation 34 Energy Generation 18 Energy Capacity 290 Matter Stores 300 Matter Capacity 300 Sight Range 18 Terrain Scan Density 10 Armor Coverage 600 Evasion (%) 55 Recoil Reduction 4 Salvage Targeting 1 Offensive Hacking 10 Authchip Count 6 Item Schematics ----------------- Signal Interpreter | -8/Materials | Hacked Arm. Treads | -8/Materials | Scanalyzed Angular Momentum Engine | -7/Zion | Archive Robot Schematics ------------------ None Fabricated ------------ Nothing Repaired ---------- Enh. Autogun | 8% | -8/Materials Studied --------- Arm. Treads | -8/Materials | Hacked Alien Tech Used ----------------- None Achievements -------------- Adventurer My Bad Signs Are For Wimps Challenges ------------ None Game ------ Seed XenonArcsightReactor Manual? 0 Play Time 01:15:36 Cumulative 26.1 hours Start 2025.11.27 @ 16:47:59 End 2025.11.27 @ 18:20:13 Sessions 1 Manual Loads 0 Difficulty Rogue Special Mode None Game No. 49 Rogue 49 Adventurer 0 Explorer 0 Win Type - Total 0 Types 0/0/0/0/0/0/0/0/0/0 Lore% 27 Gallery% 23 Achievement% 20 Wizard Run 0 Options --------- Layout 0 ASCII 0 Keyboard 0 Movement Numpad Keybinds 0 Fullscreen 1 Font 18/SmallcapsGlow Map View 76x50 Zoom Use 0% Tactical HUD 0 Map Filters NONE Filters NONE Steam 1 RUN: 6d4c7ea8-6203-4c9d-9b2e-0bb4f77fd736